[Event "European Corporate Championship 2022"]
[Site "Rotterdam"]
[Date "2022.06.19"]
[Round "8.10"]
[White "Jap Tjoen San, Linda"]
[Black "De Vreugt, Dennis"]
[Result "0-1"]
[ECO "C54"]
[WhiteElo "2045"]
[BlackElo "2393"]
[Annotator "TA"]
[PlyCount "94"]
[EventDate "2022.06.18"]
[EventType "team-tourn"]
[EventCountry "NED"]
[SourceTitle "playchess.com"]
[Source "ChessBase"]
[SourceQuality "1"]
[TimeControl "900+5"]

{[%evp 14,94,22,8,23,13,12,9,18,10,26,8,36,34,44,44,37,38,33,18,24,35,60,45,73,70,76,38,51,-54,-40,-58,-55,-260,-266,-453,-97,-932,-926,-888,-114,-287,-183,-246,-242,-250,-220,-247,-246,-235,-243,-266,-266,-289,-289,-282,-276,-286,-276,-360,-360,-381,-376,-360,-331,-349,-332,-319,-328,-315,-303,-277,-127,-127,-129,-319,-222,-311,-317,-29990,-29991,-29998,-29999]} 1. e4 {[%emt 0:00:02] Ramirez Alvarez,A} e5 {[%emt 0:00:02]} 2. Nf3 {[%emt 0:00:02]} Nc6 {[%emt 0:00:01]} 3. Bc4 {[%emt 0:00:03]} Nf6 {[%emt 0:00:03]} 4. d3 {[%emt 0:00:03]} Bc5 {[%emt 0:00:03]} 5. c3 {[%emt 0:00:01]} d6 {[%emt 0:00:03]} 6. h3 {[%emt 0:00:05]} h6 {[%emt 0:00:56]} 7. O-O {[%emt 0:01:17]} O-O {[%emt 0:00:10]} 8. Bb3 {[%emt 0:00:48]} Bb6 {[%emt 0:00:06] 8...a5 is a critical line. C54: Giuoco Piano: 4 c3 Nf6, main lines with 5 d4 and 5 d3.} 9. Nbd2 {[%emt 0:00:30][%cal Bb1d2,Bd2f1,Bf1g3][%mdl 32]} Ne7 {[%emt 0:00:44]} (9... Re8 {with more complications.} 10. Re1 Ne7 11. Nf1 Ng6) 10. d4 {[%emt 0:01:10]} Ng6 {[%emt 0:00:02] The position is equal.} 11. Bc2 {[%emt 0:02:46]} Be6 {[%emt 0:01:20]} 12. Re1 {[%emt 0:00:21]} c6 {[%emt 0:01:52]} 13. Nf1 {[%emt 0:00:31] [#]} exd4 $146 {[%emt 0:01:29]} ({Predecessor:} 13... Re8 14. Ng3 Qd7 15. Be3 Rad8 16. a4 Bc7 17. a5 a6 18. Qc1 d5 19. Bxh6 exd4 {1-0 (36) Hou,Y (2629)-Stefanova,A (2486) Beijing 2013 CBM 158 Extra [Ramirez Alvarez,A]}) 14. Nxd4 {[%emt 0:00:30]} Bd7 {[%emt 0:00:54]} 15. Ng3 {[%emt 0:00:04]} Re8 {[%emt 0:00:02]} 16. f4 {[%emt 0:01:40]} Nh4 {[%emt 0:01:11]} 17. Kh2 {[%emt 0:00:16]} Qe7 {[%emt 0:02:00]} 18. a4 {[%emt 0:00:33][%cal Ba2a4,Ba4a5][%mdl 32]} Rad8 {[%emt 0:00:33]} 19. a5 {[%emt 0:01:02]} Bc7 {[%emt 0:00:01]} 20. Nf3 {[%emt 0:00:37]} d5 {[%emt 0:01:14][%cal Rd5e4]} 21. Nxh4 {[%emt 0:00:42] [#]} ({White should play} 21. e5 $14) 21... Ng4+ $1 $15 {[%emt 0:00:02][%mdl 64] Discovered Attack} 22. Kg1 {[%emt 0:01:39]} Qxh4 {[%emt 0:00:26]} 23. Qd3 {[%emt 0:01:44]} (23. Qf3 $15 dxe4 24. Rxe4) 23... dxe4 $19 {[%emt 0:01:54]} 24. Rxe4 {[%emt 0:00:01] [#]} (24. Qe2) 24... Rxe4 $2 {[%emt 0:00:11]} (24... Bf5 $1 $19 {[%mdl 512]} 25. Qe2 (25. Nxf5 {gets mated.} Qf2+ 26. Kh1 Qe1+ 27. Rxe1 Rxe1+) 25... Bxe4 26. Nxe4 Nf6) 25. Qxe4 $4 {[%emt 0:00:03][%mdl 8192]} (25. Nxe4 $17 Bf5 26. Qe2 Bxe4 27. Bxe4) 25... Qxg3 {[%emt 0:00:50]} 26. hxg4 {[%emt 0:00:02] [#]} g6 $2 {[%emt 0:00:14]} (26... Re8 $1 $19 {[%cal Re8e4] has better winning chances.} 27. Qh7+ Kf8 28. Qh8+ Ke7 29. Qxg7 Kd8) 27. Bd2 $2 {[%emt 0:00:02]} (27. Qf3 $17 Qe1+ 28. Qf1) 27... Qxg4 {[%emt 0:00:07] Strongly threatening ...Bf5.} ({Don't go for} 27... Bxg4 $2 28. Be1 Qxf4 29. Qxf4 Bxf4 30. Bf2 $19) 28. Qf3 {[%emt 0:00:19]} (28. Bd1 $142 Qh4 29. Bf3) 28... Qxf3 {[%emt 0:00:13]} 29. gxf3 {[%emt 0:00:01]} Bf5 {[%emt 0:00:04]} 30. Bxf5 {[%emt 0:00:09]} Rxd2 {[%emt 0:00:01][%mdl 4096] Endgame KRB-KRB} 31. Bc8 {[%emt 0:00:00]} Rxb2 {[%emt 0:00:01]} 32. a6 {[%emt 0:00:16]} bxa6 {[%emt 0:00:02]} (32... Bxf4 33. axb7 Kf8 34. Ra6 $17) 33. Rxa6 {[%emt 0:00:03]} Bb6+ {[%emt 0:00:06]} 34. Kh1 {[%emt 0:00:04]} Rb3 {[%emt 0:00:14]} 35. Kg2 {[%emt 0:00:02]} Rxc3 {[%emt 0:00:01]} 36. Ra4 {[%emt 0:00:37]} f5 {[%emt 0:00:53]} 37. Ra1 {[%emt 0:00:00]} Rd3 {[%emt 0:00:00]} 38. Re1 {[%emt 0:00:00]} Kf7 {[%emt 0:00:00]} 39. Be6+ {[%emt 0:00:00]} Kf6 {[%emt 0:00:00]} 40. Bc4 {[%emt 0:00:00]} Rd2+ {[%emt 0:00:00]} 41. Kh3 {[%emt 0:00:00]} Rd6 {[%emt 0:00:00] Prevents Re6+.} 42. Re8 {[%emt 0:00:00]} g5 {[%emt 0:00:00]} (42... a5 $19 {Threatens to win with ...h5.} 43. Rf8+ Ke7 44. Rf7+ Kd8) 43. Rf8+ $17 {[%emt 0:00:05]} Kg6 {[%emt 0:00:00] Hoping for ...Rd4.} 44. Kg3 $2 {[%emt 0:00:04]} (44. Rg8+ $17 {was necessary.} Kh7 45. fxg5) 44... Be3 {[%emt 0:00:00]} 45. fxg5 {[%emt 0:00:03]} (45. Rg8+ {was the only chance.} Kh7 46. fxg5) 45... hxg5 $19 {[%emt 0:00:00]} ({Not} 45... Kxg5 $2 46. Rg8+ Kf6 47. Bb3 $19) 46. Rf7 $2 {[%emt 0:00:07]} (46. Rg8+ $19 Kh7 47. Re8) 46... Rd2 {[%emt 0:00:00]} 47. Rc7 {[%emt 0:00:04]} Bf4+ {[%emt 0:00:00] Weighted Error Value: White=0.71/Black=0.44} 0-1

[Event "European Corporate Championship 2022"]
[Site "Rotterdam"]
[Date "2022.06.19"]
[Round "8.11"]
[White "Jonkman, Harmen"]
[Black "Hol, Camile"]
[Result "1-0"]
[ECO "B22"]
[WhiteElo "2384"]
[BlackElo "2000"]
[Annotator "TA"]
[PlyCount "117"]
[EventDate "2022.06.18"]
[EventType "team-tourn"]
[EventCountry "NED"]
[SourceTitle "playchess.com"]
[Source "ChessBase"]
[SourceQuality "1"]
[TimeControl "900+5"]

{[%evp 21,117,10,19,31,40,47,118,64,90,62,59,43,179,155,171,166,154,140,161,148,148,145,171,159,183,180,210,194,201,208,179,104,190,0,224,224,233,150,253,144,143,130,132,-258,138,0,0,-8,21,0,0,0,54,72,75,-31,120,4,13,0,0,0,301,302,287,300,470,462,718,178,176,171,175,175,237,233,447,205,256,249,325,239,410,417,634,627,543,313,1026,1009,29975,29976,29972,29974,29982,29983,29982,29982]} 1. e4 {[%emt 0:00:02]} c5 {[%emt 0:00:02]} 2. Nf3 {[%emt 0:00:04]} e6 {[%emt 0:00:04]} 3. c3 {[%emt 0:00:02]} d5 {[%emt 0:00:30]} 4. exd5 {[%emt 0:00:04]} Qxd5 {[%emt 0:00:11]} 5. d4 {[%emt 0:00:03]} Nc6 {[%emt 0:00:19]} 6. Be3 {[%emt 0:00:23]} cxd4 {[%emt 0:02:29]} 7. cxd4 {[%emt 0:00:04]} Nf6 {[%emt 0:00:03]} 8. Nc3 {[%emt 0:00:02]} Bb4 {[%emt 0:00:34]} 9. Bd3 {[%emt 0:00:05]} O-O {[%emt 0:00:40]} 10. O-O {[%emt 0:00:03]} Qa5 {[%emt 0:00:32]} 11. Qc2 {[%emt 0:00:33]} h6 {[%emt 0:00:23]} 12. a3 {[%emt 0:00:44] B22: Sicilian: 2 c3.} Bxc3 {[%emt 0:00:29]} 13. bxc3 {[%emt 0:00:02]} Bd7 {[%emt 0:00:52] [#]} (13... e5 $14) 14. c4 $146 {[%emt 0:00:48]} (14. Rfb1 $16) ({Predecessor:} 14. Rfb1 Qc7 15. Qc1 Ng4 16. Bf4 e5 17. dxe5 Ncxe5 18. Nxe5 Nxe5 19. Qe3 Rfe8 20. Re1 {1-0 (35) Moradi,K (2033)-Berntsen Oybo,A (1909) Uppsala 2015}) 14... Rac8 {[%emt 0:00:31]} 15. Rfb1 {[%emt 0:00:15]} Qc7 {[%emt 0:00:52]} 16. Qd2 {[%emt 0:04:50][%cal Oe3h6] Black must now prevent Bxh6!} Qa5 {[%emt 0:01:29]} (16... Ng4 $1 $14) 17. Rxb7 {[%emt 0:00:30][%cal Oe3h6]} Qxd2 {[%emt 0:00:27]} 18. Bxd2 {[%emt 0:00:12]} Rfd8 {[%emt 0:00:18]} 19. Be3 {[%emt 0:01:46] White is much more active.} a5 {[%emt 0:00:32]} 20. Kf1 {[%emt 0:00:20]} a4 {[%emt 0:00:17]} 21. Ke2 {[%emt 0:00:16]} Na5 {[%emt 0:00:19]} 22. Rb4 {[%emt 0:00:11]} Bc6 {[%emt 0:00:16]} 23. Ne5 $1 {[%emt 0:00:09]} Nb3 {[%emt 0:01:20] [#]} 24. Nxc6 $1 {[%emt 0:00:38]} Rxc6 {[%emt 0:00:02]} 25. Rd1 {[%emt 0:00:03]} Kf8 {[%emt 0:01:07]} 26. Bc2 {[%emt 0:00:24]} (26. Rxa4 $6 Nxd4+ 27. Ke1 Rc7 $16) (26. Bb1 $18) 26... Na5 {[%emt 0:00:18] [#]} (26... Nd5 $16 {might work better.} 27. Bxb3 (27. Rxa4 Nc3+ 28. Kf3 Nxd1 $11) 27... Nxb4 28. axb4 (28. Bxa4 Ra6 $14) 28... axb3) 27. Bd3 $2 {[%emt 0:01:18]} (27. Bxa4 $6 Rxc4 28. Rxc4 Nxc4 $16) ({White should try} 27. Kd3 $1 $18) 27... Rdc8 $2 {[%emt 0:01:23]} (27... Nb3 $11 {and Black stays safe.}) 28. Rc1 $18 {[%emt 0:00:54]} ({Much less strong is} 28. Rxa4 $6 Nxc4 29. Rc1 Nxe3 30. Rxc6 Rxc6 $16) ({But not} 28. c5 Nd5 29. Kf3 R6c7 30. Rxa4 Nc3) 28... Nb3 {[%emt 0:00:03]} 29. Rb1 {[%emt 0:00:17]} ({Not} 29. Rxa4 Nxc1+ 30. Bxc1 Rb6 $14) 29... Na5 {[%emt 0:00:19]} (29... Rd8 $16 {was called for.}) 30. Rxa4 {[%emt 0:00:46]} ({Only move:} 30. c5 $18 Nd5 31. Be4) 30... Nxc4 $16 {[%emt 0:00:54]} 31. Ra7 {[%emt 0:00:21] Bxc4 is the strong threat.} Nd5 {[%emt 0:00:00] Strongly threatening ...Nc3+.} 32. Kf3 $2 {[%emt 0:00:11][%mdl 8192]} (32. Bd2 $16 {keeps the pressure on.}) 32... Nd6 $2 {[%emt 0:00:00]} (32... Ndxe3 $19 33. fxe3 Nd2+ 34. Kf4 Nxb1 35. Bxb1 Rc3) 33. a4 {[%emt 0:00:07]} (33. Bd2 $16) 33... Rc3 $11 {[%emt 0:00:00]} 34. Rd1 {[%emt 0:00:06]} Nb4 {[%emt 0:00:04]} 35. Be2 {[%emt 0:00:12]} Ra3 {[%emt 0:00:06]} 36. g4 {[%emt 0:00:15] Prevents Nf5.} Nd5 {[%emt 0:00:02]} (36... g5 $11) 37. Rd3 $1 $14 {[%emt 0:00:08]} Ra2 {[%emt 0:00:05] [#]} 38. Bf1 {[%emt 0:00:10]} (38. Rb3 $1 $16) 38... Nb6 $2 {[%emt 0:00:08] Inhibits Rd7.} (38... Rcc2 $15 {keeps the upper hand.}) 39. a5 {[%emt 0:00:05]} (39. Rb3 $16 Nd5 40. a5) 39... Nbc4 $11 {[%emt 0:00:03]} 40. a6 {[%emt 0:00:01] aiming for Rb3.} Nb5 {[%emt 0:00:03]} 41. Rb7 $36 {[%emt 0:00:15][%mdl 2048] Black is under pressure.} Ncd6 {[%emt 0:00:03][%mdl 8192] White stays focused until the end.} (41... Nbd6 $11) 42. Rb6 $18 {[%emt 0:00:03]} Ke7 {[%emt 0:00:11]} 43. Bf4 {[%emt 0:00:06]} Ra8 {[%emt 0:00:06]} (43... Rcc2 $142 44. Bg3 Rc1) 44. Rd1 {[%emt 0:00:14]} R2xa6 {[%emt 0:00:07]} (44... Ra3+ $142 45. Kg2 Rd8 46. Bxb5 Nxb5 47. Rxb5 Rxa6) 45. Rxb5 $2 {[%emt 0:00:05]} (45. Bxd6+ Nxd6 46. Bxa6) 45... Nxb5 {[%emt 0:00:04]} 46. Bxb5 {[%emt 0:00:01] This bishop pair is nice.} Ra3+ {[%emt 0:00:03]} 47. Kg2 {[%emt 0:00:03]} Rb3 {[%emt 0:00:03]} (47... g5 $142) 48. Be2 {[%emt 0:00:03]} Ra2 $2 {[%emt 0:00:03]} (48... f6 {was necessary.} 49. Rc1 Rd8) 49. Bf3 {[%emt 0:00:02]} (49. Bc4 $142 Rbb2 50. Bxa2 Rxa2 51. Rb1) 49... Rbb2 {[%emt 0:00:02]} 50. Be3 {[%emt 0:00:04]} g5 {[%emt 0:00:27]} 51. Rc1 {[%emt 0:00:04]} Ra7 $2 {[%emt 0:00:00]} (51... Rb3) 52. d5 {[%emt 0:00:08][%cal Bd4d5,Bd5d6][%mdl 32]} Rd7 {[%emt 0:00:00]} (52... Ra6 $142 53. Rc7+ Ke8 54. dxe6 Rxe6) 53. Bc5+ {[%emt 0:00:02]} Kd8 {[%emt 0:00:00]} 54. d6 {[%emt 0:00:02] Prevents Rc7.} Rb8 $2 {[%emt 0:00:12]} (54... Rb5 55. h4 gxh4) 55. Bc6 {[%emt 0:00:05]} Rc8 {[%emt 0:00:02]} 56. Bb6+ {[%emt 0:00:07] White mates.} Ke8 {[%emt 0:00:02]} 57. Bc7 {[%emt 0:00:04]} e5 {[%emt 0:00:07]} 58. Kf3 {[%emt 0:00:04]} f6 {[%emt 0:00:02]} 59. Ke4 {[%emt 0:00:02] Weighted Error Value: White=0.68/Black=0.83} 1-0

[Event "European Corporate Championship 2022"]
[Site "Rotterdam"]
[Date "2022.06.19"]
[Round "8.13"]
[White "Vistisen, Lars"]
[Black "Warmerdam, Max"]
[Result "0-1"]
[ECO "B22"]
[WhiteElo "2080"]
[BlackElo "2614"]
[Annotator "TA"]
[PlyCount "74"]
[EventDate "2022.06.18"]
[EventType "team-tourn"]
[EventCountry "NED"]
[SourceTitle "playchess.com"]
[Source "ChessBase"]
[SourceQuality "1"]
[TimeControl "900+5"]

{[%evp 9,74,11,14,0,13,0,33,0,31,30,19,0,45,-16,-14,-19,-23,-19,-19,-4,0,-54,-36,-86,-86,-91,-85,-79,-77,-81,-36,-47,-39,-82,-65,-105,-52,-63,-59,-67,-67,-70,-29,-33,-6,-54,-45,-52,-15,-87,-7,-8,0,0,0,1,17,16,16,16,50,-8,-8,-4,0,-637,-637]} 1. e4 {[%emt 0:00:03]} c5 {[%emt 0:00:01]} 2. c3 {[%emt 0:00:05]} d5 {[%emt 0:00:03]} 3. exd5 {[%emt 0:00:01]} Nf6 {[%emt 0:00:02]} 4. d4 {[%emt 0:00:10]} Nxd5 {[%emt 0:00:03]} 5. Nf3 {[%emt 0:00:38]} cxd4 {[%emt 0:00:02]} 6. Qxd4 {[%emt 0:00:38] B22: Sicilian: 2 c3.} Nc6 {[%emt 0:00:36]} 7. Bb5 {[%emt 0:00:08] [#]} f6 $146 {[%emt 0:01:59]} ({Predecessor:} 7... e6 8. O-O Bd7 9. Bxc6 Bxc6 10. Ne5 Qb6 11. Qxb6 axb6 12. Nd2 f6 13. Nxc6 bxc6 {1-0 (59) Potapov,P (2482)-Kezin,R (2470) Moscow 2019}) 8. O-O {[%emt 0:01:25] Threatens to win with Rd1. White is slightly better.} (8. Qe4 $5 {[%cal Re1g1]}) 8... e5 {[%emt 0:00:03]} (8... a6 $5 {[%cal Ra6b5]} 9. Bxc6+ bxc6 $11) 9. Qe4 {[%emt 0:05:32]} Nde7 {[%emt 0:02:39]} 10. Na3 {[%emt 0:00:30]} Bf5 {[%emt 0:00:17]} (10... a6 $5 {[%cal Ra6b5]} 11. Qa4 Bd7 $11) 11. Bxc6+ {[%emt 0:01:40]} (11. Qe2 $1 $14) 11... bxc6 $11 {[%emt 0:00:03]} 12. Qa4 {[%emt 0:00:01]} Qc7 {[%emt 0:00:16]} 13. Rd1 {[%emt 0:00:24]} Be6 {[%emt 0:01:06]} 14. Nc4 {[%emt 0:00:43] aiming for Nd6+.} Nd5 {[%emt 0:00:22]} 15. Re1 {[%emt 0:01:47]} (15. Ne3 $11 Kf7 16. Qe4) 15... Be7 $1 $15 {[%emt 0:00:28]} 16. h3 {[%emt 0:01:18]} ({White should try} 16. Nd4 $15 Bd7 17. Nb3) 16... O-O $17 {[%emt 0:00:05]} 17. Be3 {[%emt 0:00:24]} Nb6 {[%emt 0:00:34]} 18. Nxb6 {[%emt 0:00:13]} axb6 {[%emt 0:00:02]} 19. Qc2 {[%emt 0:00:02]} Bd5 {[%emt 0:00:33]} ({But not} 19... Rxa2 20. Rxa2 Bxa2 21. b3 $14) 20. Nd2 {[%emt 0:00:18][%cal Bf3d2,Bd2e4,Be4c3,Bc3d5][%mdl 32]} c5 {[%emt 0:00:31]} (20... Bxa2 $2 21. Rxa2 $1 {[%mdl 512]} Rxa2 22. Qb3+ Kh8 23. Qxa2 $18) 21. Qf5 {[%emt 0:00:21]} g6 {[%emt 0:00:14]} ({Much worse is} 21... Rxa2 $6 22. Rxa2 Bxa2 23. b3 $11) 22. Qd3 {[%emt 0:00:10]} Rad8 {[%emt 0:00:06]} (22... Bxa2 $2 {[#]} 23. Rxa2 $1 {[%mdl 512]} Rxa2 24. Qd5+ Kg7 25. Qxa2 $18) ({Black should play} 22... Rfd8 $17 {[%cal Od5g2] Strongly threatening ...Bxg2!} 23. Qb5 Qc6 24. Qxc6 Bxc6) 23. Qc2 {[%emt 0:00:04]} Kg7 {[%emt 0:00:10]} (23... f5 $5 {[%cal Rf5f4]} 24. Bh6 Rf7 $17) 24. c4 {[%emt 0:00:04]} Bc6 {[%emt 0:00:08]} 25. Ne4 {[%emt 0:00:05]} Qd7 {[%emt 0:00:21]} (25... f5 $5 {[%cal Rc6e4]} 26. Nc3 Bh4 $17) 26. Nc3 {[%emt 0:00:08]} Qe6 {[%emt 0:00:04]} 27. b3 {[%emt 0:00:09]} (27. Qb3 $11) 27... f5 $15 {[%emt 0:00:14][%cal Bf6f5,Bf5f4,Bf4f3,Bf3g2][%mdl 32] ...f4 is the strong threat.} 28. Rad1 {[%emt 0:00:01]} f4 {[%emt 0:02:22]} 29. Bc1 {[%emt 0:00:01]} (29. Rxd8 $11 Bxd8 30. Bc1) 29... Rd4 $40 {[%emt 0:00:05][%mdl 128] Black mounts an attack. Black is more active.} (29... Rxd1 $17 30. Rxd1 f3) 30. Nd5 $11 {[%emt 0:00:10]} f3 {[%emt 0:02:58] Hoping for ...fxg2.} 31. Rxd4 {[%emt 0:00:02]} cxd4 {[%emt 0:00:07]} 32. Qe4 {[%emt 0:00:06]} Bd6 {[%emt 0:00:15] Against Nc7} 33. Qxd4 {[%emt 0:00:09][%cal Og2g4]} fxg2 {[%emt 0:00:01]} 34. Qg4 {[%emt 0:00:03]} Rf5 {[%emt 0:00:11]} 35. Bb2 {[%emt 0:00:03]} (35. Ne3 $14 Rf6 36. Qxe6 Rxe6 37. Bb2) 35... Bxd5 {[%emt 0:00:08] Dancing on a razor blade.} 36. cxd5 {[%emt 0:00:07]} Qxd5 {[%emt 0:00:01]} 37. Qxg2 $2 {[%emt 0:00:02][%mdl 8192]} (37. Qe4 $11 Qxe4 38. Rxe4) 37... Qd2 $1 {[%emt 0:00:49][%csl LRb2,LRe1] Weighted Error Value: White=0.42/Black=0.19 (very precise)} 0-1

[Event "European Corporate Championship 2022"]
[Site "Rotterdam"]
[Date "2022.06.19"]
[Round "8.14"]
[White "Oudshoorn, Arres"]
[Black "Heer, Stephan"]
[Result "1-0"]
[ECO "B06"]
[WhiteElo "2137"]
[BlackElo "2047"]
[Annotator "NA RC"]
[PlyCount "75"]
[EventDate "2022.06.18"]
[EventType "team-tourn"]
[EventCountry "NED"]
[SourceTitle "playchess.com"]
[Source "ChessBase"]
[SourceQuality "1"]
[TimeControl "900+5"]

1. e4 {[%emt 0:00:02]} g6 {[%emt 0:00:01]} 2. d4 {[%emt 0:00:01]} d6 {[%emt 0:00:01]} 3. Nf3 {[%emt 0:00:10]} a6 {[%emt 0:00:01]} 4. Bd3 {[%emt 0:00:19]} Bg7 {[%emt 0:00:06]} 5. O-O {[%emt 0:00:19]} Nd7 {[%emt 0:00:06]} 6. Bg5 {[%emt 0:00:09]} h6 {[%emt 0:00:14]} 7. Bh4 {[%emt 0:00:34]} g5 {[%emt 0:01:49]} 8. Bg3 {[%emt 0:00:00]} g4 {[%emt 0:00:01]} 9. Nh4 {[%emt 0:00:01]} Bxd4 {[%emt 0:00:27]} 10. c3 {[%emt 0:00:02]} Bf6 {[%emt 0:01:00]} 11. Qxg4 {[%emt 0:00:02]} Ne5 {[%emt 0:00:35]} 12. Qe2 {[%emt 0:00:07]} Nxd3 {[%emt 0:00:12]} 13. Qxd3 {[%emt 0:00:01]} e6 {[%emt 0:00:02]} 14. Nf3 {[%emt 0:00:06]} e5 {[%emt 0:00:16]} 15. Nbd2 {[%emt 0:02:31]} h5 {[%emt 0:00:21]} 16. h3 {[%emt 0:00:01]} h4 {[%emt 0:00:26]} 17. Bh2 {[%emt 0:00:00]} Ne7 {[%emt 0:00:10]} 18. Nc4 {[%emt 0:00:46]} Rg8 {[%emt 0:00:13]} 19. Kh1 {[%emt 0:00:01]} Be6 {[%emt 0:00:10]} 20. Nfd2 {[%emt 0:00:19]} Ng6 {[%emt 0:00:25]} 21. Ne3 {[%emt 0:00:56]} Qd7 {[%emt 0:00:27]} 22. Nd5 {[%emt 0:00:10]} Bg5 {[%emt 0:01:17]} 23. Nc4 {[%emt 0:01:55]} Rd8 {[%emt 0:02:41]} 24. Rad1 {[%emt 0:02:38]} b5 {[%emt 0:01:22]} 25. Nce3 {[%emt 0:00:35]} c6 {[%emt 0:00:23]} 26. Nb4 {[%emt 0:00:36]} Bf4 {[%emt 0:00:18]} 27. Nf5 {[%emt 0:00:09]} d5 {[%emt 0:00:43]} 28. Qc2 {[%emt 0:02:25]} Bxh2 {[%emt 0:00:33]} 29. Kxh2 {[%emt 0:00:00]} Nf4 {[%emt 0:00:26]} 30. g3 {[%emt 0:00:10]} hxg3+ {[%emt 0:00:48]} 31. fxg3 {[%emt 0:00:01]} a5 {[%emt 0:00:36]} 32. Nd3 {[%emt 0:00:14]} Bxf5 {[%emt 0:00:35]} 33. Nxe5 {[%emt 0:00:50]} Qd6 {[%emt 0:00:48]} 34. Rxf4 {[%emt 0:01:02]} Bxe4 {[%emt 0:00:14]} 35. Rxe4 {[%emt 0:00:03]} Qe6 {[%emt 0:00:07]} 36. Re2 {[%emt 0:00:12]} Kf8 {[%emt 0:00:03]} 37. Rf1 {[%emt 0:00:07]} f6 {[%emt 0:00:13]} 38. Ng4 {[%emt 0:00:07]} 1-0

[Event "European Corporate Championship 2022"]
[Site "Rotterdam"]
[Date "2022.06.19"]
[Round "8.15"]
[White "Liefrink, Feike"]
[Black "Lie, Michael"]
[Result "0-1"]
[ECO "A00"]
[WhiteElo "1927"]
[BlackElo "1798"]
[Annotator "NA RC"]
[PlyCount "73"]
[EventDate "2022.06.18"]
[EventType "team-tourn"]
[EventCountry "NED"]
[SourceTitle "playchess.com"]
[Source "ChessBase"]
[SourceQuality "1"]
[TimeControl "900+5"]

1. Nc3 {[%emt 0:00:02]} c5 {[%emt 0:00:03]} 2. Nf3 {[%emt 0:00:03]} g6 {[%emt 0:00:04]} 3. d4 {[%emt 0:00:04]} cxd4 {[%emt 0:00:03]} 4. Nxd4 {[%emt 0:00:01]} Bg7 {[%emt 0:00:05]} 5. g3 {[%emt 0:00:08]} Nc6 {[%emt 0:00:02]} 6. Be3 {[%emt 0:00:04]} Nf6 {[%emt 0:00:13]} 7. h3 {[%emt 0:00:01]} O-O {[%emt 0:01:18]} 8. Bg2 {[%emt 0:00:03]} d5 {[%emt 0:00:09]} 9. O-O {[%emt 0:00:04]} e5 {[%emt 0:00:09]} 10. Nxc6 {[%emt 0:00:03]} bxc6 {[%emt 0:00:02]} 11. Bc5 {[%emt 0:00:02]} Re8 {[%emt 0:00:05]} 12. Na4 {[%emt 0:00:14]} Ba6 {[%emt 0:01:15]} 13. Re1 {[%emt 0:00:34]} Qa5 {[%emt 0:01:07]} 14. b3 {[%emt 0:01:43]} Bb5 {[%emt 0:01:24]} 15. Be3 {[%emt 0:04:54]} Bxa4 {[%emt 0:00:30]} 16. bxa4 {[%emt 0:00:00]} Qxa4 {[%emt 0:00:02]} 17. Qd3 {[%emt 0:00:21]} Rab8 {[%emt 0:01:50]} 18. Bg5 {[%emt 0:02:16]} Nd7 {[%emt 0:00:19]} 19. e4 {[%emt 0:00:34]} d4 {[%emt 0:00:22]} 20. Bf1 {[%emt 0:00:37]} Rb2 {[%emt 0:00:36]} 21. Rab1 {[%emt 0:02:41]} Reb8 {[%emt 0:00:02]} 22. c3 {[%emt 0:01:32]} Nc5 {[%emt 0:00:39]} 23. Rxb2 {[%emt 0:00:10]} Rxb2 {[%emt 0:00:01]} 24. Qc4 {[%emt 0:00:15]} Qxc4 {[%emt 0:00:24]} 25. Bxc4 {[%emt 0:00:02]} dxc3 {[%emt 0:00:40]} 26. Rc1 {[%emt 0:00:14]} Nxe4 {[%emt 0:00:15]} 27. Be3 {[%emt 0:00:02]} Nd2 {[%emt 0:01:07]} 28. Rxc3 {[%emt 0:00:08]} e4 {[%emt 0:01:01]} 29. Rc1 {[%emt 0:00:03]} Nf3+ {[%emt 0:00:50]} 30. Kg2 {[%emt 0:00:03]} Bd4 {[%emt 0:00:04]} 31. Bxd4 {[%emt 0:00:24]} Nxd4 {[%emt 0:00:02]} 32. Re1 {[%emt 0:00:17]} Rb4 {[%emt 0:00:06]} 33. Bf1 {[%emt 0:00:05]} Nf3 {[%emt 0:00:01]} 34. Re3 {[%emt 0:00:03]} f5 {[%emt 0:00:05]} 35. Rc3 {[%emt 0:00:01]} Rb6 {[%emt 0:00:15]} 36. Ra3 {[%emt 0:00:02]} Rb7 {[%emt 0:00:26]} 37. Ra6 {[%emt 0:00:20]} 0-1